bitfinex-derivatives/quotes_BTCF0:USTF0_20251208
["timestamp","ask_amount","ask_price","bid_price","bid_amount"]
[1765174635559,0.22094435,91451.0,91450.0,0.6916851]
[1765174639660,0.06170435,91451.0,91450.0,0.6916851]
[1765174645965,0.06170435,91451.0,91450.0,0.8216851]
[1765174646154,0.06313649,91454.0,91450.0,0.8216851]
[1765174646155,0.06313649,91454.0,91453.0,0.03966]
[1765174646356,0.06313649,91454.0,91453.0,0.26777797]
[1765174646557,0.06313649,91454.0,91453.0,0.16966]
[1765174647268,0.06313649,91454.0,91453.0,0.03966]
[1765174647466,0.06313649,91454.0,91453.0,0.04666]
[1765174649263,0.13905649,91454.0,91453.0,0.04666]
[1765174649458,0.21559649,91454.0,91453.0,0.04666]
[1765174652872,0.21559649,91454.0,91453.0,0.17666]
[1765174653068,0.13905649,91454.0,91453.0,0.04666]
[1765174653579,0.06313649,91454.0,91453.0,0.04666]
[1765174653771,0.06313649,91454.0,91453.0,0.17666]
[1765174654570,0.06313649,91454.0,91453.0,0.27462512]
[1765174654872,0.06313649,91454.0,91453.0,0.14462512]
[1765174655072,0.13905649,91454.0,91453.0,0.14462512]
[1765174655460,0.13905649,91454.0,91453.0,0.04666]
[1765174656368,0.21559649,91454.0,91453.0,0.14459728]
[1765174656771,0.21559649,91454.0,91453.0,0.63188728]
[1765174656970,0.21559649,91454.0,91453.0,0.53395]
[1765174657166,0.21559649,91454.0,91453.0,0.55378]
[1765174664470,0.06313649,91454.0,91453.0,0.55378]
[1765174665180,0.13845649,91454.0,91453.0,0.55378]
[1765174666077,0.13845649,91454.0,91453.0,0.65171728]
[1765174666378,0.06313649,91454.0,91453.0,0.65171728]
[1765174666675,0.06313649,91454.0,91453.0,0.69378]
[1765174666973,0.06313649,91454.0,91453.0,0.95378]
[1765174667473,0.05260709,91454.0,91453.0,0.95378]
[1765174667977,0.0674329,91460.0,91453.0,1.45378]
[1765174668280,0.07244538,91468.0,91460.0,0.0661339]
[1765174668586,0.07244538,91468.0,91460.0,1.2440539]
[1765174669580,0.07244538,91468.0,91460.0,0.9340539]
[1765174670375,0.07244538,91468.0,91460.0,0.9840539]
[1765174670576,0.07244538,91468.0,91460.0,0.9850539]
[1765174670879,0.07244538,91468.0,91460.0,0.9880539]
[1765174672679,0.07244538,91468.0,91460.0,1.2680539]
[1765174676179,0.07244538,91468.0,91460.0,1.2496539]
[1765174679981,0.07244538,91468.0,91460.0,0.9696539]
[1765174680378,0.07244538,91468.0,91460.0,1.2696539]
[1765174682986,0.26633897,91461.0,91460.0,1.2696539]
[1765174683187,0.16852897,91461.0,91460.0,1.2696539]
[1765174683388,0.06814897,91461.0,91460.0,1.2696539]
[1765174683606,0.26633897,91461.0,91460.0,0.4125339]
[1765174684097,0.26633897,91461.0,91460.0,0.9195739]
[1765174684782,0.26633897,91461.0,91460.0,0.3757339]
[1765174684986,0.26633897,91461.0,91460.0,0.8827739]
[1765174685185,0.26633897,91461.0,91460.0,0.9625239]
[1765174685387,0.26633897,91461.0,91460.0,1.0422739]
[1765174687887,0.26633897,91461.0,91460.0,0.8827739]
[1765174688088,0.26633897,91461.0,91460.0,0.96980533]
[1765174688386,0.27727277,91461.0,91460.0,0.87184]
[1765174688890,0.27727277,91461.0,91460.0,0.3648]
[1765174689089,0.27727277,91461.0,91460.0,0.4431816]
[1765174689294,0.27727277,91461.0,91460.0,0.51104]
[1765174692893,0.27727277,91461.0,91460.0,0.50804]
[1765174693094,0.26633897,91461.0,91460.0,0.58295]
[1765174693296,0.26633897,91461.0,91460.0,0.51104]
[1765174693492,0.26633897,91461.0,91460.0,0.50804]
[1765174693697,0.26633897,91461.0,91460.0,0.51004]
[1765174694000,0.26633897,91461.0,91460.0,0.50804]
[1765174694198,0.26633897,91461.0,91460.0,0.51104]
[1765174694701,0.26633897,91461.0,91460.0,0.65486]
[1765174694901,0.26633897,91461.0,91460.0,0.58295]
[1765174696307,0.26633897,91461.0,91460.0,0.51104]
[1765174698908,0.26633897,91461.0,91460.0,0.51004]
[1765174699104,0.26633897,91461.0,91460.0,0.51104]
[1765174699304,0.26633897,91461.0,91460.0,0.58195]
[1765174699901,0.26633897,91461.0,91460.0,0.51004]
[1765174700607,0.26633897,91461.0,91460.0,0.58195]
[1765174700807,0.26633897,91461.0,91460.0,0.51004]
[1765174702513,0.26633897,91461.0,91460.0,0.003]
[1765174705302,0.26633897,91461.0,91460.0,0.001]
[1765174705502,0.26633897,91461.0,91460.0,0.003]
[1765174706115,0.26633897,91461.0,91460.0,0.14682]
[1765174706704,0.26633897,91461.0,91460.0,0.1577539]
[1765174706912,0.06814897,91461.0,91460.0,0.1577539]
[1765174707306,0.06814897,91461.0,91460.0,0.1807839]
[1765174707708,0.06814897,91461.0,91460.0,0.5207839]
[1765174712120,0.06814897,91461.0,91460.0,0.3607839]
[1765174712718,0.06814897,91461.0,91460.0,0.5707839]
[1765174714316,0.06814897,91461.0,91460.0,0.1807839]
[1765174714513,0.06814897,91461.0,91460.0,0.8047939]
[1765174714713,0.26279897,91461.0,91460.0,0.6647939]
[1765174715419,0.26279897,91461.0,91460.0,0.1577539]
[1765174715621,0.26279897,91461.0,91460.0,0.76268842]
[1765174717020,0.26279897,91461.0,91460.0,0.65386]
[1765174727031,0.06814897,91461.0,91460.0,0.65386]
[1765174727531,0.24872897,91461.0,91460.0,0.65386]
[1765174731253,0.24872897,91461.0,91460.0,0.003]
[1765174731438,0.24872897,91461.0,91460.0,0.51]
[1765174732050,0.24872897,91461.0,91460.0,0.58841531]
[1765174732743,0.24872897,91461.0,91460.0,0.51]
[1765174733949,0.24872897,91461.0,91460.0,0.59856]
[1765174734348,0.24872897,91461.0,91460.0,0.55428]
[1765174734740,0.24872897,91461.0,91460.0,0.51]
[1765174735540,0.1915139,91460.0,91459.0,0.08452398]
[1765174735756,0.1915143,91457.0,91456.0,0.05885018]
[1765174736054,0.1915143,91457.0,91455.0,0.05885018]
[1765174736350,0.2473445,91455.0,91454.0,0.05885018]
[1765174736547,0.1915149,91452.0,91451.0,0.50716405]
[1765174736754,0.5523149,91452.0,91451.0,0.50696755]
[1765174737145,0.1915159,91443.0,91434.0,0.3608]
[1765174737345,0.18058,91441.0,91440.0,0.507]
[1765174737746,0.2473469,91435.0,91434.0,0.37419671]
[1765174738652,0.2473469,91435.0,91434.0,0.55274671]
[1765174738955,0.23641,91435.0,91434.0,0.55374671]
[1765174739655,0.23641,91435.0,91434.0,0.01439671]
[1765174740247,0.23641,91435.0,91434.0,0.001]
[1765174740451,0.185,91426.0,91425.0,0.00012592]
[1765174740649,0.185,91426.0,91404.0,0.3608]
[1765174740650,0.2346705,91405.0,91404.0,0.5436]
[1765174740845,0.2346705,91405.0,91404.0,0.86492]
[1765174741245,0.2346705,91405.0,91404.0,0.87843873]
[1765174741757,0.22384943,91405.0,91404.0,0.87843873]
[1765174742254,0.22384943,91405.0,91404.0,0.88343873]
[1765174742451,0.23478993,91405.0,91404.0,0.3658]
[1765174742650,0.59558993,91405.0,91404.0,0.01845753]
[1765174743349,0.59558993,91405.0,91404.0,0.005]
[1765174743947,0.59558993,91405.0,91404.0,0.002]
[1765174744255,0.59558993,91405.0,91404.0,0.005]
[1765174744452,0.59558993,91405.0,91404.0,0.004]
[1765174744655,0.23478993,91405.0,91404.0,0.003]
[1765174746256,0.19605993,91405.0,91404.0,0.1858]
[1765174747552,0.18511943,91405.0,91404.0,0.1858]
[1765174747751,0.00011943,91405.0,91404.0,0.23878]
[1765174748159,0.09206943,91405.0,91404.0,0.23878]
[1765174748548,0.18511943,91405.0,91404.0,0.23878]
[1765174749153,0.18511943,91405.0,91404.0,0.1858]
[1765174752456,0.00011943,91405.0,91404.0,0.23748]
[1765174752656,0.18312943,91405.0,91404.0,0.23748]
[1765174753660,0.18312943,91405.0,91404.0,0.2484206]
[1765174755654,0.18312943,91405.0,91404.0,0.1858]
[1765174756959,0.00011943,91405.0,91404.0,0.23748]
[1765174757149,0.09181943,91405.0,91404.0,0.23748]
[1765174760158,0.00011943,91405.0,91404.0,0.23748]
[1765174763070,0.00011943,91405.0,91404.0,0.7448]
[1765174766368,0.18312943,91405.0,91404.0,0.7448]
[1765174768665,0.09181943,91405.0,91404.0,0.7448]
[1765174770262,0.00011943,91405.0,91404.0,0.7448]
[1765174771670,0.09186405,91414.0,91413.0,0.1928395]
[1765174771972,0.00016405,91414.0,91413.0,1.0609595]
[1765174772268,0.09186405,91414.0,91413.0,1.0609595]
[1765174772570,0.18317405,91414.0,91413.0,1.0609595]
[1765174772765,0.18517405,91414.0,91413.0,1.0609595]
[1765174773764,0.18317405,91414.0,91413.0,1.0639595]
[1765174773964,0.18317405,91414.0,91413.0,1.0699595]
[1765174774371,0.18317405,91414.0,91413.0,1.0639595]
[1765174774571,0.18317405,91414.0,91413.0,1.0699595]
[1765174775071,0.18317405,91414.0,91413.0,1.0669595]
[1765174775266,0.18317405,91414.0,91413.0,1.0699595]
[1765174775870,0.18317405,91414.0,91413.0,1.0669595]
[1765174776074,0.18317405,91414.0,91413.0,1.0699595]
[1765174779166,0.18317405,91414.0,91413.0,1.05902]
[1765174779368,0.18317405,91414.0,91413.0,0.61044]
[1765174779562,0.18317405,91414.0,91413.0,0.69822]
[1765174780061,0.18317405,91414.0,91413.0,0.69722]
[1765174780674,0.18317405,91414.0,91413.0,0.69322]
[1765174781375,0.18317405,91414.0,91413.0,0.7021595]
[1765174781968,0.18317405,91414.0,91413.0,0.7001595]
[1765174782169,0.18317405,91414.0,91413.0,0.7021195]
[1765174782572,0.18317405,91414.0,91413.0,0.7011195]
[1765174782970,0.18317405,91414.0,91413.0,0.7031195]
[1765174783171,0.18317405,91414.0,91413.0,0.69118]
[1765174783479,0.18317405,91414.0,91413.0,0.68371]
[1765174785070,0.18317405,91414.0,91413.0,0.68271]
[1765174785680,0.18317405,91414.0,91413.0,0.68071]
[1765174785880,0.18317405,91414.0,91413.0,0.6916495]
[1765174786283,0.18317405,91414.0,91413.0,0.76806481]
[1765174786478,0.18317405,91414.0,91413.0,0.6916495]
[1765174786790,0.18317405,91414.0,91413.0,0.68071]
[1765174787384,0.18317405,91414.0,91413.0,0.75912531]
[1765174789081,0.18317405,91414.0,91413.0,0.68071]
[1765174799398,0.00016405,91414.0,91413.0,0.68071]
[1765174799904,0.3608,91428.0,91427.0,0.16744]
[1765174799905,0.52787,91428.0,91427.0,0.16744]
[1765174800085,0.52787,91428.0,91427.0,0.67472]
[1765174800289,0.3608,91428.0,91427.0,0.67472]
[1765174800590,0.52787,91439.0,91438.0,0.16744]
[1765174800795,0.52787,91439.0,91438.0,0.67472]
[1765174801189,0.44609,91439.0,91438.0,0.67472]
[1765174801692,0.08529,91439.0,91438.0,0.67472]
[1765174801997,0.008,91439.0,91438.0,0.67472]
[1765174802184,0.00016405,91448.0,91438.0,0.58359]
[1765174802390,0.16723405,91448.0,91447.0,0.52824]
[1765174802602,0.16723405,91448.0,91447.0,1.03552]
[1765174803993,0.16723405,91448.0,91447.0,1.03652]
[1765174804192,0.16723405,91448.0,91447.0,1.03952]
[1765174804790,0.16723405,91448.0,91447.0,1.03852]
[1765174804991,0.16723405,91448.0,91447.0,0.67772]
[1765174805192,0.16723405,91448.0,91447.0,0.51028]
[1765174805793,0.16723405,91448.0,91447.0,0.50828]
[1765174806093,0.16723405,91448.0,91447.0,0.50928]
[1765174806987,0.16723405,91448.0,91447.0,0.002]
[1765174807196,0.16723405,91448.0,91447.0,0.001]
[1765174807393,0.14744,91442.0,91441.0,0.71141914]
[1765174807598,0.1583761,91442.0,91441.0,0.71141914]
[1765174808797,0.14744,91442.0,91441.0,0.71141914]
[1765174809295,0.1583761,91442.0,91441.0,0.65253]
[1765174810102,0.1583761,91442.0,91441.0,0.71141914]
[1765174811101,0.1583761,91442.0,91441.0,0.65253]
[1765174811303,0.1583761,91442.0,91441.0,0.71134465]
[1765174812698,0.14744,91442.0,91441.0,0.71134465]
[1765174812900,0.07179405,91448.0,91447.0,0.14219]
[1765174813103,0.14578405,91448.0,91447.0,0.14219]
[1765174813796,0.07179405,91448.0,91447.0,0.14219]
[1765174814401,0.14578405,91448.0,91447.0,0.14319]
[1765174814708,0.14578405,91448.0,91447.0,0.14619]
[1765174817106,0.15671935,91448.0,91447.0,0.14619]
[1765174818204,0.15671935,91448.0,91447.0,0.14319]
[1765174818507,0.15671935,91448.0,91447.0,0.14619]
[1765174818698,0.08272935,91448.0,91447.0,0.14619]
[1765174818901,0.15671935,91448.0,91447.0,0.14619]
[1765174819211,0.14578405,91448.0,91447.0,0.1571255]
[1765174819806,0.14578405,91448.0,91447.0,0.1561255]
[1765174820106,0.14578405,91448.0,91447.0,0.1571255]
[1765174820308,0.14578405,91448.0,91447.0,0.14319]
[1765174820513,0.14578405,91448.0,91447.0,0.14519]
[1765174821012,0.14578405,91448.0,91447.0,0.14319]
[1765174821313,0.14578405,91448.0,91447.0,0.51012]
[1765174821717,0.14578405,91448.0,91447.0,0.50912]
[1765174822105,0.14578405,91448.0,91447.0,0.50812]
[1765174822306,0.14578405,91448.0,91447.0,0.50912]
[1765174823108,0.14578405,91448.0,91447.0,0.5805]
[1765174823314,0.14578405,91448.0,91447.0,0.50812]
[1765174823710,0.14578405,91448.0,91447.0,0.65031]
[1765174824213,0.14678405,91448.0,91447.0,0.64931]
[1765174825310,0.14678405,91448.0,91447.0,0.70811682]
[1765174826006,0.14678405,91448.0,91447.0,0.64931]
[1765174826410,0.07279405,91448.0,91447.0,0.65031]
[1765174826615,0.00016405,91448.0,91447.0,0.65031]
[1765174826807,0.00016405,91448.0,91447.0,0.65231]
[1765174827421,0.00016405,91448.0,91447.0,0.65331]
[1765174828418,0.14578405,91448.0,91447.0,0.07638]
[1765174828721,0.50658405,91448.0,91447.0,0.004]
[1765174829515,0.14562,91430.0,91422.0,0.07854495]
[1765174829718,0.5173575,91430.0,91423.0,0.4414]
[1765174829930,0.14562,91424.0,91423.0,0.14219]
[1765174831016,0.1565582,91424.0,91423.0,0.14219]
[1765174831217,0.1565593,91415.0,91414.0,0.14235405]
[1765174831516,0.1565593,91415.0,91414.0,0.00016405]
[1765174831714,0.1565593,91415.0,91414.0,0.14235405]
[1765174832422,0.1565593,91415.0,91414.0,0.00016405]
[1765174832818,0.1575593,91415.0,91414.0,0.00016405]
[1765174833612,0.1575593,91415.0,91414.0,0.07254405]
[1765174834225,0.1565593,91415.0,91414.0,0.14235405]
[1765174834425,0.1575593,91415.0,91414.0,0.14235405]
[1765174834625,0.1625593,91415.0,91414.0,0.14235405]
[1765174835222,0.1615593,91415.0,91414.0,0.14235405]
[1765174835423,0.1615593,91415.0,91414.0,0.07354405]
[1765174835817,0.1615593,91415.0,91414.0,0.14335405]
[1765174836019,0.1565593,91415.0,91414.0,0.14335405]
[1765174836214,0.1585593,91415.0,91414.0,0.14335405]
[1765174836732,0.1595593,91415.0,91414.0,0.14335405]
[1765174837132,0.1595593,91415.0,91414.0,0.14235405]
[1765174838824,0.1595593,91415.0,91414.0,0.14335405]
[1765174839227,0.1575593,91415.0,91414.0,0.14335405]
[1765174839730,0.1585593,91415.0,91414.0,0.14335405]
[1765174840230,0.1585593,91415.0,91414.0,0.14235405]
[1765174842032,0.1565593,91415.0,91414.0,0.14235405]
[1765174842331,0.1595593,91415.0,91414.0,0.14235405]
[1765174842732,0.1595593,91415.0,91414.0,0.07254405]
[1765174843730,0.1605593,91415.0,91414.0,0.07254405]
[1765174843930,0.1605593,91415.0,91414.0,0.17059405]
[1765174845334,0.1585593,91415.0,91414.0,0.17059405]
[1765174845834,0.1565593,91415.0,91414.0,0.17059405]
[1765174846134,0.1595593,91415.0,91414.0,0.17059405]
[1765174846630,0.1595593,91415.0,91414.0,0.00016405]
[1765174847032,0.1595593,91415.0,91414.0,0.07210405]
[1765174848934,0.1565593,91415.0,91414.0,0.07210405]
[1765174849131,0.1605593,91415.0,91414.0,0.17015405]
[1765174858139,0.1575593,91415.0,91414.0,0.17015405]
[1765174858646,0.1575593,91415.0,91414.0,0.17115405]
[1765174859239,0.1575593,91415.0,91414.0,0.22985305]
[1765174860347,0.1575593,91415.0,91414.0,0.17115405]
[1765174864547,0.2125693,91415.0,91414.0,0.17115405]
[1765174869843,0.2125693,91415.0,91414.0,0.06021673]
[1765174870246,0.2125693,91415.0,91414.0,0.14878673]
[1765174870850,0.2125693,91415.0,91414.0,0.17836405]
[1765174871050,0.1575593,91415.0,91414.0,0.17836405]
[1765174887573,0.1575593,91415.0,91414.0,0.00116405]
[1765174888471,0.1575593,91415.0,91414.0,0.17961405]
[1765174892266,0.1575593,91415.0,91414.0,0.00116405]
[1765174892474,0.18190321,91415.0,91414.0,0.00088057]
[1765174901473,0.1797604,91406.0,91405.0,0.00016405]
[1765174902878,0.1797604,91406.0,91405.0,0.08910405]
[1765174903977,0.1797604,91406.0,91405.0,0.16423405]
[1765174903978,0.1807604,91406.0,91405.0,0.16423405]
[1765174904174,0.1807604,91406.0,91405.0,0.16223405]
[1765174906472,0.1807604,91406.0,91405.0,0.00016405]
[1765174906678,0.1807604,91406.0,91405.0,0.16223405]
[1765174917488,0.5415604,91406.0,91405.0,0.16223405]
[1765174922184,0.56588686,91406.0,91405.0,0.16223405]
[1765174922585,0.20508686,91406.0,91405.0,0.16223405]
[1765174922787,0.16982,91406.0,91405.0,0.16223405]
[1765174922992,0.001,91406.0,91405.0,0.16223405]
[1765174924086,0.14944,91406.0,91405.0,0.16323405]
[1765174924992,0.14844,91406.0,91405.0,0.16323405]
[1765174925182,0.14944,91406.0,91405.0,0.16323405]
[1765174925584,0.14844,91406.0,91405.0,0.16523405]
[1765174925885,0.07459,91415.0,91414.0,0.15024]
[1765174926593,0.14844,91415.0,91414.0,0.15024]
[1765174926783,0.14844,91415.0,91414.0,0.1611794]
[1765174926981,0.14844,91415.0,91414.0,0.15024]
[1765174927183,0.14844,91415.0,91414.0,0.15124]
[1765174928281,0.14844,91415.0,91414.0,0.07783]
[1765174928480,0.14944,91415.0,91414.0,0.001]
[1765174928686,0.14944,91415.0,91414.0,0.07783]
[1765174928886,0.14944,91415.0,91414.0,0.15124]
[1765174929086,0.14944,91415.0,91414.0,0.001]
[1765174929282,0.14844,91406.0,91405.0,0.00016405]
[1765174929787,0.1593807,91403.0,91402.0,0.16262006]
[1765174929992,0.1593807,91403.0,91402.0,0.15024]
[1765174932096,0.1593807,91403.0,91402.0,0.16235732]
[1765174932299,0.1593807,91403.0,91402.0,0.16335732]
[1765174933692,0.14844,91403.0,91402.0,0.16335732]
[1765174954524,0.14844,91403.0,91402.0,0.01311732]
[1765174955117,0.14844,91403.0,91402.0,0.08795732]
[1765174956829,0.14844,91403.0,91402.0,0.15951732]
[1765174958821,0.14844,91403.0,91402.0,0.17045812]
[1765174959126,0.14844,91403.0,91398.0,0.3608]
[1765174959127,0.14862,91399.0,91398.0,0.3608]
[1765174959328,0.1595618,91394.0,91393.0,0.00016405]
[1765174959535,0.54486421,91394.0,91393.0,0.00016405]
[1765174959921,0.14862,91381.0,91380.0,0.41417032]
[1765174960123,0.14862,91381.0,91380.0,0.56057032]
[1765174960337,0.14862,91381.0,91380.0,0.49381415]
[1765174960923,0.14862,91381.0,91380.0,0.15832038]
[1765174961836,0.14862,91381.0,91380.0,0.16632038]
[1765174962038,0.14862,91381.0,91380.0,0.17032038]
[1765174963330,0.0781,91381.0,91380.0,0.20273038]
[1765174963524,0.14454,91381.0,91380.0,0.20273038]
[1765174963929,0.1374,91385.0,91384.0,0.1325]
[1765174964634,0.3608,91386.0,91385.0,0.0109429]
[1765174964821,0.1374,91395.0,91394.0,0.1325]
[1765174966030,0.1374,91395.0,91394.0,0.1375]
[1765174967321,0.1818,91395.0,91394.0,0.1375]
[1765174967632,0.1818,91395.0,91394.0,0.005]
[1765174971432,0.1818,91395.0,91394.0,0.07396]
[1765174971731,0.1927417,91395.0,91394.0,0.07396]
[1765174972134,0.1927417,91395.0,91394.0,0.1375]
[1765174972527,0.1927417,91395.0,91394.0,0.07396]
[1765174972835,0.1927417,91395.0,91394.0,0.005]
[1765174973236,0.1927417,91395.0,91394.0,0.1375]
[1765174974937,0.1927417,91395.0,91394.0,0.08547]
[1765174978338,0.13304,91387.0,91386.0,0.06628]
[1765174978540,0.1439826,91387.0,91386.0,0.13162]
[1765174978941,0.1439826,91387.0,91386.0,0.13105]
[1765174979535,0.1439826,91387.0,91386.0,0.13305]
[1765174980340,0.1439826,91387.0,91386.0,0.13605]
[1765174983439,0.06432,91387.0,91386.0,0.13605]
[1765174983639,0.1439822,91391.0,91390.0,0.1425623]
[1765174984141,0.1439822,91391.0,91390.0,0.13162]
[1765174984829,0.1439822,91391.0,91390.0,0.13362]
[1765174985030,0.1439822,91391.0,91390.0,0.13562]
[1765174990249,0.0752617,91395.0,91390.0,0.004]
[1765174990440,0.1439817,91395.0,91394.0,0.13162]
[1765174990842,0.1439817,91395.0,91394.0,0.1425618]
[1765174991043,0.1439817,91395.0,91394.0,0.13162]
[1765174991450,0.40226,91396.0,91390.0,0.0149422]
[1765174991451,0.1439822,91391.0,91390.0,0.13562]
[1765174992450,0.1439822,91391.0,91390.0,0.13362]
[1765174992844,0.1439822,91391.0,91390.0,0.13162]
[1765174993247,0.1439822,91391.0,91390.0,0.13362]
[1765174993852,0.1439822,91391.0,91390.0,0.13562]
[1765174995860,0.0752622,91391.0,91390.0,0.13562]
[1765174996352,0.12674,91395.0,91394.0,0.1392618]
[1765174996853,0.06588,91395.0,91394.0,0.1392618]
[1765174997451,0.12674,91395.0,91394.0,0.1402618]
[1765174999254,0.16716,91395.0,91394.0,0.1402618]
[1765174999845,0.16716,91395.0,91394.0,0.12932]
[1765175000044,0.16716,91395.0,91394.0,0.1402618]
[1765175001458,0.16716,91395.0,91394.0,0.12932]
[1765175003959,0.12674,91395.0,91394.0,0.12932]
[1765175005261,0.13784485,91403.0,91402.0,0.12832]
[1765175005465,0.16320804,91403.0,91402.0,0.12832]
[1765175007765,0.16620804,91403.0,91402.0,0.12832]
[1765175012970,0.0109412,91399.0,91398.0,0.12832]
[1765175013169,0.1376812,91399.0,91398.0,0.12832]
[1765175014270,0.1376812,91399.0,91398.0,0.12932]
[1765175014469,0.1386812,91399.0,91398.0,0.12932]
[1765175020972,0.001,91399.0,91398.0,0.12932]
[1765175021779,0.06688,91399.0,91398.0,0.12932]
[1765175024381,0.001,91399.0,91398.0,0.12932]
[1765175024786,0.0008359,91399.0,91398.0,0.20799655]
[1765175025584,0.0637159,91399.0,91398.0,0.20799655]
[1765175025790,0.1215759,91399.0,91398.0,0.20799655]
[1765175026589,0.0637159,91399.0,91398.0,0.20799655]
[1765175027185,0.0637159,91399.0,91398.0,0.12932]
[1765175027385,0.1215759,91399.0,91398.0,0.12932]
[1765175027689,0.1215759,91399.0,91398.0,0.06839]
[1765175027894,0.1215759,91399.0,91398.0,0.5736]
[1765175028102,0.1215759,91399.0,91398.0,0.50836]
[1765175028390,0.1215759,91399.0,91398.0,0.001]
[1765175029578,0.1316818,91394.0,91393.0,0.00011028]
[1765175029784,0.15674148,91394.0,91393.0,0.00011028]
[1765175030792,0.15674148,91394.0,91393.0,0.00211028]
[1765175030994,0.15674148,91394.0,91393.0,0.00311028]
[1765175031188,0.12074,91394.0,91393.0,0.12437028]
[1765175031599,0.12074,91394.0,91393.0,0.48517028]
[1765175039891,0.12074,91394.0,91393.0,0.49611218]
[1765175048900,0.11491,91394.0,91393.0,0.49611218]
[1765175049700,0.11491,91394.0,91393.0,0.12437028]
[1765175049906,0.11491,91394.0,91393.0,0.00311028]
[1765175050304,0.10784,91381.0,91380.0,0.01192038]
[1765175050507,0.1187838,91377.0,91376.0,0.63821655]
[1765175050809,0.1187838,91377.0,91376.0,0.61225]
[1765175051713,0.1187838,91377.0,91376.0,0.61925]
[1765175052106,0.1187838,91377.0,91376.0,0.6324728]
[1765175052712,0.1187838,91377.0,91376.0,0.6364728]
[1765175053714,0.1187838,91377.0,91376.0,0.5837628]
[1765175053919,0.1187838,91377.0,91376.0,0.6375028]
[1765175054306,0.10784,91377.0,91376.0,0.6375028]
[1765175055915,0.10784,91377.0,91376.0,0.1301828]
[1765175061421,0.10784,91377.0,91376.0,0.1411268]
[1765175063527,0.10784,91377.0,91376.0,0.1301828]
[1765175064226,0.10784,91377.0,91376.0,0.0764428]
[1765175064414,0.10784,91377.0,91376.0,0.1301828]
[1765175064721,0.46864,91377.0,91376.0,0.0242228]
[1765175064925,0.10784,91377.0,91376.0,0.0242228]
[1765175067114,0.10784,91377.0,91376.0,0.0799328]
[1765175067324,0.10784,91377.0,91376.0,0.1336728]
[1765175076736,0.10784,91377.0,91376.0,0.06671]
[1765175076933,0.46964,91377.0,91376.0,0.007]
[1765175077129,0.46964,91377.0,91376.0,0.11645]
[1765175077827,0.10884,91377.0,91376.0,0.11645]
[1765175078028,0.10884,91377.0,91376.0,0.1296696]
[1765175078224,0.11384,91377.0,91376.0,0.1226696]
[1765175090746,0.11384,91377.0,91376.0,0.1163296]
[1765175091341,0.11384,91377.0,91376.0,0.1272736]
[1765175097863,0.11384,91377.0,91376.0,0.1163296]
[1765175098161,0.11384,91377.0,91376.0,0.1272736]
[1765175101170,0.14071,91377.0,91376.0,0.1272736]
[1765175101868,0.006,91377.0,91376.0,0.1272736]
[1765175102270,0.11347,91392.0,91391.0,0.0951722]
[1765175102459,0.04298,91392.0,91391.0,0.0951722]
[1765175102660,0.11347,91398.0,91397.0,0.0951714]
[1765175103368,0.11347,91398.0,91397.0,0.08423]
[1765175103966,0.11447,91398.0,91397.0,0.08423]
[1765175111275,0.11447,91398.0,91397.0,0.04208]
[1765175111461,0.11447,91398.0,91397.0,0.08423]
[1765175112471,0.02787,91398.0,91392.0,0.08278]
[1765175112671,0.0985819,91393.0,91392.0,0.08278]
[1765175113778,0.08764,91393.0,91392.0,0.08278]
[1765175114571,0.08764,91393.0,91392.0,0.08478]
[1765175115081,0.08764,91393.0,91392.0,0.093722]
[1765175115269,0.08764,91393.0,91392.0,0.095722]
[1765175116283,0.08764,91393.0,91392.0,0.08478]
[1765175132781,0.44844,91393.0,91392.0,0.002]
[1765175133181,0.125913,91384.0,91383.0,0.07873303]
[1765175133388,0.0985834,91381.0,91380.0,0.67001303]
[1765175134190,0.0985834,91381.0,91380.0,0.59128]
[1765175134889,0.0985834,91381.0,91380.0,0.68095653]
[1765175135186,0.0985834,91381.0,91380.0,0.6022235]
[1765175135585,0.0985834,91381.0,91380.0,0.6032235]
[1765175143803,0.09096475,91403.0,91402.0,0.08213]
[1765175143988,0.10463586,91403.0,91402.0,0.08213]
[1765175144188,0.08002405,91403.0,91402.0,0.08213]
[1765175145197,0.08902405,91403.0,91402.0,0.08213]
[1765175145595,0.09302405,91403.0,91402.0,0.08213]
[1765175146295,0.09002405,91403.0,91402.0,0.08213]
[1765175146699,0.08102405,91403.0,91402.0,0.08213]
[1765175146900,0.08202405,91403.0,91402.0,0.08213]
[1765175149799,0.08102405,91403.0,91402.0,0.08213]
[1765175149996,0.08202405,91403.0,91402.0,0.08213]
[1765175154002,0.00216405,91403.0,91402.0,0.08213]
[1765175154398,0.04487405,91403.0,91402.0,0.08213]
[1765175154898,0.04387405,91403.0,91402.0,0.08313]
[1765175155203,0.00116405,91403.0,91402.0,0.08313]
[1765175155702,0.04387405,91403.0,91402.0,0.08313]
[1765175155893,0.04287405,91403.0,91402.0,0.08513]
[1765175158403,0.12025244,91420.0,91402.0,0.08513]
[1765175158404,0.07986,91417.0,91416.0,0.0930692]
[1765175158597,0.07986,91417.0,91416.0,0.08213]
[1765175159601,0.08086,91417.0,91416.0,0.08213]
[1765175160305,0.08386,91417.0,91416.0,0.08213]
[1765175161006,0.08286,91417.0,91416.0,0.08213]
[1765175161206,0.08386,91417.0,91416.0,0.08213]
[1765175162006,0.08386,91417.0,91416.0,0.0930692]
[1765175162307,0.08186,91417.0,91416.0,0.0930692]
[1765175163705,0.08186,91417.0,91416.0,0.08213]
[1765175164402,0.08186,91417.0,91416.0,0.0930692]
[1765175165509,0.07282,91423.0,91422.0,0.0817284]
[1765175165893,0.07298415,91426.0,91425.0,0.0817281]
[1765175168010,0.07298415,91426.0,91425.0,0.07179]
[1765175168804,0.07298415,91426.0,91425.0,0.07079]
[1765175169902,0.07282,91411.0,91410.0,0.16562244]
[1765175170107,0.07282,91411.0,91410.0,0.57803]
[1765175170405,0.07282,91411.0,91410.0,0.07079]
[1765175170603,0.07282,91411.0,91410.0,0.57803]
[1765175170804,0.1052692,91416.0,91415.0,0.07079]
[1765175171509,0.07282,91416.0,91415.0,0.07079]
[1765175171706,0.09433,91420.0,91419.0,0.07079]
[1765175171905,0.43253,91423.0,91422.0,0.06983]
[1765175172114,0.00016415,91426.0,91425.0,0.06983]
[1765175172706,0.07189415,91426.0,91425.0,0.06983]
[1765175173405,0.00016415,91426.0,91425.0,0.06983]
[1765175173612,0.00016415,91426.0,91425.0,0.07283]
[1765175174203,0.03512415,91426.0,91425.0,0.07383]